[Event "*** SCC Grand Prix: Titled Tuesday Blitz"]
[Site "Chess.com"]
[Date "2020.09.08"]
[Round "7"]
[White "exoticprincess"]
[Black "GukeshDommaraju"]
[Result "1/2-1/2"]
[WhiteElo "2891"]
[BlackElo "2768"]
[TimeControl "180+1"]
[EndTime "11:18:38 PDT"]
[Termination "Game drawn by repetition"]

1. e4 {[%clk 0:03:00.9]} 1... c6 {[%clk 0:02:59.8]} 2. d4 {[%clk 0:02:59.5]}
2... d5 {[%clk 0:03:00.1]} 3. Nd2 {[%clk 0:02:59.4]} 3... dxe4 {[%clk 0:03:00]}
4. Nxe4 {[%clk 0:03:00.3]} 4... Nf6 {[%clk 0:03:00.6]} 5. Nxf6+ {[%clk
0:02:57.5]} 5... exf6 {[%clk 0:03:01.5]} 6. c3 {[%clk 0:02:56.4]} 6... Bd6
{[%clk 0:03:01.4]} 7. Bd3 {[%clk 0:02:56.5]} 7... O-O {[%clk 0:03:01.7]} 8. Ne2
{[%clk 0:02:55.6]} 8... Re8 {[%clk 0:03:02.1]} 9. O-O {[%clk 0:02:53.6]} 9...
Nd7 {[%clk 0:03:01.8]} 10. Bf4 {[%clk 0:02:42.9]} 10... Nf8 {[%clk 0:02:59.4]}
11. Qd2 {[%clk 0:02:38.2]} 11... Ng6 {[%clk 0:02:57.3]} 12. Bxd6 {[%clk
0:02:37.4]} 12... Qxd6 {[%clk 0:02:57.2]} 13. Rae1 {[%clk 0:02:37.1]} 13... Bd7
{[%clk 0:02:46.9]} 14. Ng3 {[%clk 0:02:27.7]} 14... Qf4 {[%clk 0:02:39.6]} 15.
Qc2 {[%clk 0:02:16.8]} 15... Rxe1 {[%clk 0:02:33.2]} 16. Rxe1 {[%clk 0:02:16.2]}
16... Re8 {[%clk 0:02:33.2]} 17. Rxe8+ {[%clk 0:02:12.1]} 17... Bxe8 {[%clk
0:02:34.1]} 18. Ne2 {[%clk 0:02:10.5]} 18... Qd6 {[%clk 0:02:31.7]} 19. Bc4
{[%clk 0:02:05.9]} 19... Bd7 {[%clk 0:02:29.4]} 20. Qb3 {[%clk 0:01:59.7]} 20...
Be6 {[%clk 0:02:29.6]} 21. g3 {[%clk 0:01:51.7]} 21... b5 {[%clk 0:02:21.6]} 22.
Bxe6 {[%clk 0:01:50.9]} 22... Qxe6 {[%clk 0:02:22.5]} 23. Qxe6 {[%clk 0:01:17]}
23... fxe6 {[%clk 0:02:23.4]} 24. Kf1 {[%clk 0:01:16.9]} 24... Kf7 {[%clk
0:02:23.2]} 25. Ke1 {[%clk 0:01:17]} 25... Ke7 {[%clk 0:02:23.5]} 26. Kd2 {[%clk
0:01:17]} 26... Kd6 {[%clk 0:02:24]} 27. Kd3 {[%clk 0:01:17.1]} 27... e5 {[%clk
0:02:23.2]} 28. Ke4 {[%clk 0:01:16.3]} 28... Ke6 {[%clk 0:02:17.6]} 29. dxe5
{[%clk 0:01:15.8]} 29... f5+ {[%clk 0:02:16.7]} 30. Kd4 {[%clk 0:00:45]} 30...
Nxe5 {[%clk 0:02:13.9]} 31. h4 {[%clk 0:00:44.5]} 31... Kd6 {[%clk 0:02:12.8]}
32. b3 {[%clk 0:00:43]} 32... c5+ {[%clk 0:02:12.1]} 33. Ke3 {[%clk 0:00:43]}
33... g6 {[%clk 0:02:08.8]} 34. Nf4 {[%clk 0:00:40.3]} 34... a5 {[%clk
0:02:08.1]} 35. Nd3 {[%clk 0:00:32.5]} 35... Ng4+ {[%clk 0:01:47.8]} 36. Kf4
{[%clk 0:00:23.3]} 36... c4 {[%clk 0:01:35.9]} 37. bxc4 {[%clk 0:00:22.8]} 37...
bxc4 {[%clk 0:01:36.8]} 38. Nb2 {[%clk 0:00:22.9]} 38... Kd5 {[%clk 0:01:33.1]}
39. f3 {[%clk 0:00:22.8]} 39... Ne5 {[%clk 0:01:18.6]} 40. Ke3 {[%clk
0:00:18.5]} 40... h6 {[%clk 0:01:15.8]} 41. Na4 {[%clk 0:00:17.7]} 41... g5
{[%clk 0:01:02.5]} 42. hxg5 {[%clk 0:00:18.6]} 42... hxg5 {[%clk 0:01:03.4]} 43.
f4 {[%clk 0:00:17.7]} 43... Nf7 {[%clk 0:00:47]} 44. Nb6+ {[%clk 0:00:16.4]}
44... Kc5 {[%clk 0:00:47.1]} 45. Nd7+ {[%clk 0:00:16]} 45... Kd6 {[%clk
0:00:47.4]} 46. Nb6 {[%clk 0:00:15.8]} 46... Kc5 {[%clk 0:00:47.5]} 47. Nd7+
{[%clk 0:00:14.5]} 47... Kd6 {[%clk 0:00:47.8]} 48. Nb6 {[%clk 0:00:11.8]} 48...
Kc5 {[%clk 0:00:47.9]} 1/2-1/2

[Event "*** SCC Grand Prix: Titled Tuesday Blitz"]
[Site "Chess.com"]
[Date "2020.09.08"]
[Round "7"]
[White "TudorAnton"]
[Black "Tooweak2slow03"]
[Result "0-1"]
[WhiteElo "2568"]
[BlackElo "2785"]
[TimeControl "180+1"]
[EndTime "11:18:39 PDT"]
[Termination "Tooweak2slow03 won by resignation"]

1. c4 {[%clk 0:03:00.9]} 1... e6 {[%clk 0:03:00.9]} 2. Nc3 {[%clk 0:02:54.2]}
2... Bb4 {[%clk 0:03:00.2]} 3. g3 {[%clk 0:02:49.7]} 3... f5 {[%clk 0:02:59.4]}
4. Qb3 {[%clk 0:02:47.4]} 4... a5 {[%clk 0:02:58.7]} 5. a3 {[%clk 0:02:46.9]}
5... Bxc3 {[%clk 0:02:54.4]} 6. Qxc3 {[%clk 0:02:47.8]} 6... Nf6 {[%clk
0:02:54.3]} 7. b4 {[%clk 0:02:47.3]} 7... O-O {[%clk 0:02:54.7]} 8. Bb2 {[%clk
0:02:45.4]} 8... axb4 {[%clk 0:02:50.4]} 9. axb4 {[%clk 0:02:46.3]} 9... Rxa1+
{[%clk 0:02:50.3]} 10. Bxa1 {[%clk 0:02:46.5]} 10... d6 {[%clk 0:02:50.6]} 11.
Bg2 {[%clk 0:02:45.9]} 11... Nbd7 {[%clk 0:02:50]} 12. Nf3 {[%clk 0:02:44.7]}
12... Qe7 {[%clk 0:02:50.1]} 13. O-O {[%clk 0:02:44.6]} 13... b6 {[%clk
0:02:50.4]} 14. Nd4 {[%clk 0:02:43.4]} 14... Kh8 {[%clk 0:02:35.9]} 15. Bb2
{[%clk 0:02:42.5]} 15... Qf7 {[%clk 0:02:26.5]} 16. Ra1 {[%clk 0:02:37.5]} 16...
c5 {[%clk 0:02:20.9]} 17. Nb5 {[%clk 0:02:35.2]} 17... d5 {[%clk 0:02:16.5]} 18.
bxc5 {[%clk 0:02:24.1]} 18... bxc5 {[%clk 0:01:33.3]} 19. Ra7 {[%clk 0:02:07.8]}
19... d4 {[%clk 0:01:30.3]} 20. Qa3 {[%clk 0:02:02.7]} 20... e5 {[%clk
0:01:28.1]} 21. Bc6 {[%clk 0:01:53.4]} 21... Qxc4 {[%clk 0:01:26.1]} 22. Nd6
{[%clk 0:01:44.2]} 22... Qxe2 {[%clk 0:01:23.9]} 23. Nxc8 {[%clk 0:01:43.2]}
23... Qe1+ {[%clk 0:01:22.4]} 24. Kg2 {[%clk 0:01:42.7]} 24... Ng4 {[%clk
0:01:22.2]} 25. Qf3 {[%clk 0:01:34.2]} 25... e4 {[%clk 0:01:20.8]} 26. Qf4
{[%clk 0:01:34]} 26... g5 {[%clk 0:01:20.9]} 27. Ra1 {[%clk 0:01:25]} 27... Qe2
{[%clk 0:01:20.9]} 28. Bb5 {[%clk 0:01:21.6]} 28... Qxb5 {[%clk 0:01:15.4]} 29.
Nd6 {[%clk 0:01:05.9]} 29... Qxb2 {[%clk 0:01:07.8]} 30. Qxg5 {[%clk 0:01:05.4]}
30... e3 {[%clk 0:01:02.7]} 31. Nxf5 {[%clk 0:00:50.3]} 31... d3 {[%clk
0:00:56.6]} 32. Rb1 {[%clk 0:00:28.7]} 32... Qf6 {[%clk 0:00:52]} 33. Qxg4
{[%clk 0:00:28.9]} 33... Qxf5 {[%clk 0:00:49.2]} 34. Qxf5 {[%clk 0:00:28.7]}
34... Rxf5 {[%clk 0:00:49.9]} 35. fxe3 {[%clk 0:00:28.6]} 35... c4 {[%clk
0:00:47.8]} 36. Rb7 {[%clk 0:00:28]} 36... Ne5 {[%clk 0:00:43.1]} 37. h3 {[%clk
0:00:23]} 37... Nf3 {[%clk 0:00:39.9]} 38. g4 {[%clk 0:00:21.4]} 38... Rf6
{[%clk 0:00:37.3]} 39. Rb2 {[%clk 0:00:19.2]} 39... Nxd2 {[%clk 0:00:23.6]} 40.
Rxd2 {[%clk 0:00:18.5]} 40... Rd6 {[%clk 0:00:23.9]} 41. Ra2 {[%clk 0:00:14.1]}
41... c3 {[%clk 0:00:23.5]} 42. Kf3 {[%clk 0:00:14.3]} 42... d2 {[%clk
0:00:23.3]} 43. Ra8+ {[%clk 0:00:14.5]} 43... Kg7 {[%clk 0:00:23.2]} 44. Ra7+
{[%clk 0:00:15.4]} 0-1

[Event "*** SCC Grand Prix: Titled Tuesday Blitz"]
[Site "Chess.com"]
[Date "2020.09.08"]
[Round "7"]
[White "KaterynaLagno"]
[Black "ChessPromotionAlex"]
[Result "1-0"]
[WhiteElo "2702"]
[BlackElo "2512"]
[TimeControl "180+1"]
[EndTime "11:18:40 PDT"]
[Termination "KaterynaLagno won on time"]

1. e4 {[%clk 0:03:00.9]} 1... c5 {[%clk 0:02:59]} 2. Nf3 {[%clk 0:03:00.3]} 2...
d6 {[%clk 0:02:59.5]} 3. Bb5+ {[%clk 0:03:00.3]} 3... Bd7 {[%clk 0:03:00]} 4.
Bxd7+ {[%clk 0:02:59.9]} 4... Qxd7 {[%clk 0:03:00.9]} 5. c4 {[%clk 0:02:57.6]}
5... Nc6 {[%clk 0:02:59.8]} 6. Nc3 {[%clk 0:02:57]} 6... Nf6 {[%clk 0:02:59.3]}
7. d4 {[%clk 0:02:57]} 7... cxd4 {[%clk 0:02:59.6]} 8. Nxd4 {[%clk 0:02:56.4]}
8... g6 {[%clk 0:02:59.6]} 9. f3 {[%clk 0:02:54.5]} 9... Bg7 {[%clk 0:02:59.5]}
10. Be3 {[%clk 0:02:54.8]} 10... O-O {[%clk 0:02:59.3]} 11. Rc1 {[%clk
0:02:49.4]} 11... a6 {[%clk 0:02:52.2]} 12. O-O {[%clk 0:02:30.6]} 12... Nxd4
{[%clk 0:02:49.1]} 13. Bxd4 {[%clk 0:02:30]} 13... b5 {[%clk 0:02:47]} 14. cxb5
{[%clk 0:02:22.1]} 14... axb5 {[%clk 0:02:47.9]} 15. a3 {[%clk 0:02:22.2]} 15...
Rfb8 {[%clk 0:02:19]} 16. Na2 {[%clk 0:02:13.6]} 16... Rc8 {[%clk 0:02:12.1]}
17. Qd3 {[%clk 0:02:10.9]} 17... e5 {[%clk 0:01:36.7]} 18. Bc3 {[%clk
0:02:01.5]} 18... d5 {[%clk 0:01:15.1]} 19. Bxe5 {[%clk 0:01:59.7]} 19... Qa7+
{[%clk 0:00:35.4]} 20. Bd4 {[%clk 0:01:45.1]} 20... dxe4 {[%clk 0:00:29.3]} 21.
fxe4 {[%clk 0:01:44.7]} 21... Rd8 {[%clk 0:00:25.5]} 22. Bxa7 {[%clk 0:01:35]}
22... Rxd3 {[%clk 0:00:25.2]} 23. Nb4 {[%clk 0:01:34.6]} 23... Rd2 {[%clk
0:00:23.7]} 24. Be3 {[%clk 0:01:32.8]} 24... Rxb2 {[%clk 0:00:22.7]} 25. Bd4
{[%clk 0:01:32.9]} 25... Nxe4 {[%clk 0:00:20.2]} 26. Bxb2 {[%clk 0:01:30.9]}
26... Bxb2 {[%clk 0:00:21.1]} 27. Rcd1 {[%clk 0:01:08]} 27... Bxa3 {[%clk
0:00:17.2]} 28. Ra1 {[%clk 0:01:05.8]} 28... Ra7 {[%clk 0:00:13.5]} 29. Kh1
{[%clk 0:01:01.2]} 29... Ra4 {[%clk 0:00:12.2]} 30. Nc2 {[%clk 0:00:49.4]} 30...
Bc5 {[%clk 0:00:09.3]} 31. Rxa4 {[%clk 0:00:41.6]} 31... bxa4 {[%clk 0:00:10.2]}
32. g3 {[%clk 0:00:40.3]} 32... f5 {[%clk 0:00:09.4]} 33. Rb1 {[%clk 0:00:36.1]}
33... Nc3 {[%clk 0:00:06.6]} 34. Rb8+ {[%clk 0:00:33.9]} 34... Kf7 {[%clk
0:00:06.1]} 35. Rc8 {[%clk 0:00:34.3]} 35... Ne4 {[%clk 0:00:04.4]} 36. Ra8
{[%clk 0:00:32]} 36... Nc3 {[%clk 0:00:04]} 37. Kg2 {[%clk 0:00:31.5]} 37... Ke6
{[%clk 0:00:03.6]} 38. Kf3 {[%clk 0:00:28.8]} 38... h5 {[%clk 0:00:02.9]} 39.
Kf4 {[%clk 0:00:28.4]} 1-0

[Event "*** SCC Grand Prix: Titled Tuesday Blitz"]
[Site "Chess.com"]
[Date "2020.09.08"]
[Round "7"]
[White "pastouche06"]
[Black "chessmachine14"]
[Result "1-0"]
[WhiteElo "2490"]
[BlackElo "2344"]
[TimeControl "180+1"]
[EndTime "11:18:41 PDT"]
[Termination "pastouche06 won by checkmate"]

1. d4 {[%clk 0:03:00.9]} 1... Nf6 {[%clk 0:02:58.9]} 2. c4 {[%clk 0:03:00.1]}
2... g6 {[%clk 0:02:59.8]} 3. f3 {[%clk 0:02:59.7]} 3... Bg7 {[%clk 0:03:00.7]}
4. e4 {[%clk 0:02:59.4]} 4... O-O {[%clk 0:03:01.6]} 5. Ne2 {[%clk 0:02:59.6]}
5... d6 {[%clk 0:03:00.5]} 6. Be3 {[%clk 0:02:59.6]} 6... c6 {[%clk 0:02:58.7]}
7. Qd2 {[%clk 0:02:56.5]} 7... a6 {[%clk 0:02:59.6]} 8. a4 {[%clk 0:02:56.1]}
8... e5 {[%clk 0:02:56.3]} 9. d5 {[%clk 0:02:52]} 9... a5 {[%clk 0:02:55.7]} 10.
Nec3 {[%clk 0:02:33.6]} 10... Na6 {[%clk 0:02:54.4]} 11. Na3 {[%clk 0:02:30.1]}
11... Nd7 {[%clk 0:02:53.7]} 12. dxc6 {[%clk 0:02:23.6]} 12... Ndc5 {[%clk
0:02:48.3]} 13. Rd1 {[%clk 0:02:17.9]} 13... bxc6 {[%clk 0:02:37.1]} 14. Qxd6
{[%clk 0:02:17.3]} 14... Qb6 {[%clk 0:02:37.1]} 15. Rd2 {[%clk 0:02:00.9]} 15...
Be6 {[%clk 0:02:28]} 16. Nd5 {[%clk 0:01:56.6]} 16... Bxd5 {[%clk 0:02:25.1]}
17. cxd5 {[%clk 0:01:56.5]} 17... Rac8 {[%clk 0:02:11.9]} 18. Bxa6 {[%clk
0:01:54.1]} 18... Qxa6 {[%clk 0:02:01.7]} 19. Qxc5 {[%clk 0:01:39.7]} 19... cxd5
{[%clk 0:02:01.3]} 20. Qxd5 {[%clk 0:01:34.2]} 20... Rc1+ {[%clk 0:01:57.3]} 21.
Rd1 {[%clk 0:01:30]} 21... Rcc8 {[%clk 0:01:27.7]} 22. Nb5 {[%clk 0:01:19.1]}
22... Rc2 {[%clk 0:01:18.2]} 23. O-O {[%clk 0:01:11.2]} 23... Rxb2 {[%clk
0:01:18.1]} 24. Rf2 {[%clk 0:01:07.7]} 24... Rb4 {[%clk 0:01:16.1]} 25. Bc5
{[%clk 0:01:05]} 25... Rxa4 {[%clk 0:01:07.4]} 26. Bxf8 {[%clk 0:01:04.5]} 26...
Bxf8 {[%clk 0:01:08.3]} 27. Rc2 {[%clk 0:01:00.6]} 27... Rb4 {[%clk 0:00:56.3]}
28. Nd6 {[%clk 0:00:56]} 28... Qa7+ {[%clk 0:00:52.3]} 29. Kh1 {[%clk
0:00:48.1]} 29... a4 {[%clk 0:00:52.3]} 30. Rc8 {[%clk 0:00:37]} 30... a3 {[%clk
0:00:52.1]} 31. Qxe5 {[%clk 0:00:34.4]} 31... a2 {[%clk 0:00:47.8]} 32. Qe8
{[%clk 0:00:30.9]} 32... Kg7 {[%clk 0:00:28.3]} 33. Qxf8+ {[%clk 0:00:28.5]}
33... Kf6 {[%clk 0:00:28.2]} 34. Qh8+ {[%clk 0:00:28.7]} 34... Ke6 {[%clk
0:00:27.5]} 35. Re8+ {[%clk 0:00:25.3]} 35... Kd7 {[%clk 0:00:27]} 36. Rd8+
{[%clk 0:00:24]} 36... Kc6 {[%clk 0:00:26.2]} 37. Qe8+ {[%clk 0:00:23.7]} 37...
Kb6 {[%clk 0:00:25.4]} 38. Nc8+ {[%clk 0:00:22.6]} 38... Ka6 {[%clk 0:00:24.2]}
39. Nxa7 {[%clk 0:00:21.1]} 39... Rb1 {[%clk 0:00:24.1]} 40. Qc6+ {[%clk
0:00:20.4]} 40... Ka5 {[%clk 0:00:22.7]} 41. Rd5+ {[%clk 0:00:19.9]} 41... Kb4
{[%clk 0:00:20.1]} 42. Rb5+ {[%clk 0:00:18.5]} 42... Ka3 {[%clk 0:00:19.8]} 43.
Qa6# {[%clk 0:00:18.6]} 1-0

[Event "*** SCC Grand Prix: Titled Tuesday Blitz"]
[Site "Chess.com"]
[Date "2020.09.08"]
[Round "7"]
[White "sasko1234"]
[Black "chessdjw"]
[Result "0-1"]
[WhiteElo "2417"]
[BlackElo "2578"]
[TimeControl "180+1"]
[EndTime "11:18:45 PDT"]
[Termination "chessdjw won by resignation"]

1. b3 {[%clk 0:03:00.9]} 1... Nf6 {[%clk 0:02:57.5]} 2. Bb2 {[%clk 0:03:00.7]}
2... g6 {[%clk 0:02:58.3]} 3. g4 {[%clk 0:03:00.1]} 3... Bg7 {[%clk 0:02:52.2]}
4. g5 {[%clk 0:02:59.5]} 4... Nh5 {[%clk 0:02:52.9]} 5. Bxg7 {[%clk 0:02:59.3]}
5... Nxg7 {[%clk 0:02:53.8]} 6. Nc3 {[%clk 0:02:59.4]} 6... d5 {[%clk
0:02:52.1]} 7. d4 {[%clk 0:02:59.2]} 7... h6 {[%clk 0:02:50.6]} 8. gxh6 {[%clk
0:02:58.3]} 8... Rxh6 {[%clk 0:02:50.4]} 9. Qd2 {[%clk 0:02:58.9]} 9... Rh8
{[%clk 0:02:48.1]} 10. O-O-O {[%clk 0:02:58.7]} 10... Nc6 {[%clk 0:02:45.9]} 11.
f3 {[%clk 0:02:37.6]} 11... Nf5 {[%clk 0:02:36.4]} 12. e3 {[%clk 0:02:29.2]}
12... Be6 {[%clk 0:02:31.5]} 13. Nge2 {[%clk 0:02:27]} 13... Nh4 {[%clk
0:02:29.6]} 14. Ng1 {[%clk 0:02:15.4]} 14... Qd7 {[%clk 0:02:11]} 15. Qf2 {[%clk
0:02:03.5]} 15... O-O-O {[%clk 0:02:07]} 16. Nge2 {[%clk 0:02:00.3]} 16... a6
{[%clk 0:02:02]} 17. Nf4 {[%clk 0:01:58.6]} 17... Qd6 {[%clk 0:01:45.7]} 18. Kb2
{[%clk 0:01:56.9]} 18... Kb8 {[%clk 0:01:44.4]} 19. a3 {[%clk 0:01:51.6]} 19...
g5 {[%clk 0:01:40.5]} 20. Nd3 {[%clk 0:01:48.1]} 20... f6 {[%clk 0:01:37.6]} 21.
Nc5 {[%clk 0:01:39.6]} 21... Bc8 {[%clk 0:01:37]} 22. b4 {[%clk 0:01:31.9]}
22... e5 {[%clk 0:01:33.1]} 23. b5 {[%clk 0:01:20.9]} 23... Na5 {[%clk
0:01:18.4]} 24. bxa6 {[%clk 0:01:19]} 24... b6 {[%clk 0:01:11.8]} 25. a7+ {[%clk
0:01:12.7]} 25... Ka8 {[%clk 0:01:10.5]} 26. Nb3 {[%clk 0:01:04.8]} 26... Nxb3
{[%clk 0:01:02.7]} 27. cxb3 {[%clk 0:01:03.4]} 27... c6 {[%clk 0:01:03]} 28. a4
{[%clk 0:00:57.9]} 28... Kxa7 {[%clk 0:01:02.4]} 29. a5 {[%clk 0:00:58.2]} 29...
bxa5 {[%clk 0:00:58.4]} 30. Ra1 {[%clk 0:00:57.6]} 30... Qb4 {[%clk 0:00:52.4]}
31. Ra4 {[%clk 0:00:44.7]} 31... Qb6 {[%clk 0:00:52.2]} 32. Be2 {[%clk
0:00:43.6]} 32... exd4 {[%clk 0:00:38.8]} 33. exd4 {[%clk 0:00:43]} 33... Bf5
{[%clk 0:00:32]} 34. Rha1 {[%clk 0:00:42.2]} 34... Kb7 {[%clk 0:00:29.6]} 35.
Rxa5 {[%clk 0:00:42.5]} 35... Ra8 {[%clk 0:00:29.3]} 36. Ra6 {[%clk 0:00:41]}
36... Rxa6 {[%clk 0:00:24]} 37. Bxa6+ {[%clk 0:00:37.7]} 37... Kc7 {[%clk
0:00:23.4]} 38. Qg3+ {[%clk 0:00:37.6]} 38... Kd7 {[%clk 0:00:22]} 39. Na4
{[%clk 0:00:33.4]} 39... Qxd4+ {[%clk 0:00:21.6]} 40. Ka2 {[%clk 0:00:33.6]}
40... Ra8 {[%clk 0:00:20.4]} 41. Qf2 {[%clk 0:00:15.3]} 41... Qxf2+ {[%clk
0:00:19.6]} 0-1

[Event "*** SCC Grand Prix: Titled Tuesday Blitz"]
[Site "Chess.com"]
[Date "2020.09.08"]
[Round "7"]
[White "The_Machine04"]
[Black "WinstonSilvakov"]
[Result "1-0"]
[WhiteElo "2269"]
[BlackElo "2125"]
[TimeControl "180+1"]
[EndTime "11:18:46 PDT"]
[Termination "The_Machine04 won by resignation"]

1. d4 {[%clk 0:03:00.9]} 1... Nf6 {[%clk 0:03:00.9]} 2. Bg5 {[%clk 0:02:59.3]}
2... c5 {[%clk 0:03:00.1]} 3. Bxf6 {[%clk 0:02:59]} 3... gxf6 {[%clk 0:02:59.2]}
4. d5 {[%clk 0:02:59.2]} 4... Qb6 {[%clk 0:02:54.9]} 5. Qc1 {[%clk 0:02:59.7]}
5... h5 {[%clk 0:02:48.5]} 6. c4 {[%clk 0:02:59.6]} 6... Bh6 {[%clk 0:02:46.5]}
7. e3 {[%clk 0:03:00.1]} 7... d6 {[%clk 0:02:46.8]} 8. Nc3 {[%clk 0:03:00.5]}
8... Na6 {[%clk 0:02:45.6]} 9. a3 {[%clk 0:02:59.8]} 9... Bf5 {[%clk 0:02:43.5]}
10. Nf3 {[%clk 0:02:58.5]} 10... Nc7 {[%clk 0:02:35.6]} 11. Qd2 {[%clk
0:02:50.4]} 11... Qa5 {[%clk 0:02:35.7]} 12. Bd3 {[%clk 0:02:49.9]} 12... Bg4
{[%clk 0:02:32]} 13. h3 {[%clk 0:02:47.7]} 13... Bxf3 {[%clk 0:02:30.3]} 14.
gxf3 {[%clk 0:02:48.6]} 14... O-O-O {[%clk 0:02:27.2]} 15. b4 {[%clk 0:02:39.8]}
15... cxb4 {[%clk 0:02:25.7]} 16. Ne4 {[%clk 0:02:30.1]} 16... Na6 {[%clk
0:02:24.1]} 17. Ke2 {[%clk 0:02:26.2]} 17... f5 {[%clk 0:02:19.7]} 18. Ng3
{[%clk 0:02:22.7]} 18... Bg7 {[%clk 0:02:06.4]} 19. Ra2 {[%clk 0:02:01]} 19...
e6 {[%clk 0:02:00.1]} 20. axb4 {[%clk 0:01:38.7]} 20... Qxb4 {[%clk 0:01:56.7]}
21. Qxb4 {[%clk 0:01:37]} 21... Nxb4 {[%clk 0:01:56.2]} 22. Rxa7 {[%clk
0:01:37.9]} 22... Na6 {[%clk 0:01:51.7]} 23. Ra8+ {[%clk 0:01:37]} 23... Kc7
{[%clk 0:01:49.6]} 24. Rxd8 {[%clk 0:01:34.4]} 24... Kxd8 {[%clk 0:01:50.1]} 25.
h4 {[%clk 0:01:22.4]} 25... Nc5 {[%clk 0:01:41.9]} 26. f4 {[%clk 0:01:21.6]}
26... Kc7 {[%clk 0:01:37.8]} 27. Bc2 {[%clk 0:01:06.1]} 27... Bf6 {[%clk
0:01:33.5]} 28. Kf3 {[%clk 0:00:59.3]} 28... Na6 {[%clk 0:01:30.5]} 29. Kg2
{[%clk 0:00:52.4]} 29... Nb4 {[%clk 0:01:28.3]} 30. Bd1 {[%clk 0:00:52.1]} 30...
Nd3 {[%clk 0:01:20.8]} 31. Bxh5 {[%clk 0:00:48.7]} 31... Nb2 {[%clk 0:01:21]}
32. Bxf7 {[%clk 0:00:47.3]} 32... exd5 {[%clk 0:01:14.5]} 33. Bxd5 {[%clk
0:00:47.1]} 33... Rxh4 {[%clk 0:01:10.2]} 34. Rxh4 {[%clk 0:00:46.7]} 34... Bxh4
{[%clk 0:01:11.1]} 35. Nxf5 {[%clk 0:00:47.4]} 35... Bf6 {[%clk 0:01:10.6]} 36.
Kf3 {[%clk 0:00:37.9]} 36... Nd3 {[%clk 0:01:06.6]} 37. Ng3 {[%clk 0:00:36]}
37... Kb6 {[%clk 0:01:01.6]} 38. Ne4 {[%clk 0:00:34.6]} 38... Be7 {[%clk
0:01:00.2]} 39. Ke2 {[%clk 0:00:33.6]} 39... Nb2 {[%clk 0:00:54.9]} 40. f5
{[%clk 0:00:31.6]} 40... Ka5 {[%clk 0:00:54]} 41. f6 {[%clk 0:00:28.2]} 41...
Bf8 {[%clk 0:00:53.3]} 42. f7 {[%clk 0:00:28.4]} 42... Kb4 {[%clk 0:00:51.7]}
43. Ng5 {[%clk 0:00:17.3]} 43... Nxc4 {[%clk 0:00:50.5]} 44. Bxc4 {[%clk
0:00:17.5]} 44... Kxc4 {[%clk 0:00:50.2]} 45. Ne6 {[%clk 0:00:18.4]} 45... Be7
{[%clk 0:00:48.9]} 46. f8=Q {[%clk 0:00:18.7]} 46... Bxf8 {[%clk 0:00:49.8]} 47.
Nxf8 {[%clk 0:00:19.6]} 47... Kc3 {[%clk 0:00:48.6]} 48. Ne6 {[%clk 0:00:17.7]}
48... b5 {[%clk 0:00:45.6]} 49. Nd4 {[%clk 0:00:18.6]} 49... b4 {[%clk
0:00:44.7]} 50. f4 {[%clk 0:00:19.2]} 50... Kc4 {[%clk 0:00:44.2]} 51. f5 {[%clk
0:00:18]} 51... Kd5 {[%clk 0:00:44.4]} 52. Kd3 {[%clk 0:00:18.5]} 52... Ke5
{[%clk 0:00:43.2]} 53. Kc4 {[%clk 0:00:18.2]} 1-0

[Event "*** SCC Grand Prix: Titled Tuesday Blitz"]
[Site "Chess.com"]
[Date "2020.09.08"]
[Round "7"]
[White "ehrenfeld"]
[Black "AsaHoffmann"]
[Result "1-0"]
[WhiteElo "2561"]
[BlackElo "2396"]
[TimeControl "180+1"]
[EndTime "11:18:49 PDT"]
[Termination "ehrenfeld won by checkmate"]

1. e4 {[%clk 0:03:00.9]} 1... d6 {[%clk 0:02:59]} 2. d4 {[%clk 0:02:58.4]} 2...
c6 {[%clk 0:02:57.9]} 3. Nc3 {[%clk 0:02:57.6]} 3... a6 {[%clk 0:02:56.2]} 4. a4
{[%clk 0:02:56.1]} 4... Nf6 {[%clk 0:02:53]} 5. a5 {[%clk 0:02:55.3]} 5... g6
{[%clk 0:02:41.7]} 6. Nge2 {[%clk 0:02:53.8]} 6... Bg7 {[%clk 0:02:41]} 7. h3
{[%clk 0:02:53.8]} 7... O-O {[%clk 0:02:40.3]} 8. g4 {[%clk 0:02:53.7]} 8... e5
{[%clk 0:02:36.6]} 9. dxe5 {[%clk 0:02:41.6]} 9... dxe5 {[%clk 0:02:35.7]} 10.
Qxd8 {[%clk 0:02:41.7]} 10... Rxd8 {[%clk 0:02:35.3]} 11. Be3 {[%clk 0:02:39.1]}
11... Be6 {[%clk 0:02:32.5]} 12. Ng3 {[%clk 0:02:34.9]} 12... Nbd7 {[%clk
0:02:29]} 13. g5 {[%clk 0:02:28.6]} 13... Ne8 {[%clk 0:02:26.5]} 14. Na4 {[%clk
0:02:21.3]} 14... Bf8 {[%clk 0:02:21.1]} 15. c3 {[%clk 0:02:20.2]} 15... Nc7
{[%clk 0:02:18.4]} 16. Be2 {[%clk 0:02:16.7]} 16... Nb5 {[%clk 0:02:17.3]} 17.
h4 {[%clk 0:02:14.4]} 17... Bb3 {[%clk 0:02:14.8]} 18. Nb6 {[%clk 0:02:10.1]}
18... Nxb6 {[%clk 0:02:14.2]} 19. Bxb6 {[%clk 0:02:08.8]} 19... Rd7 {[%clk
0:02:09.8]} 20. Bg4 {[%clk 0:01:59]} 20... Re7 {[%clk 0:01:58.7]} 21. h5 {[%clk
0:01:57.8]} 21... Be6 {[%clk 0:01:57.7]} 22. Be2 {[%clk 0:01:52.4]} 22... Rd7
{[%clk 0:01:55.2]} 23. hxg6 {[%clk 0:01:50.7]} 23... fxg6 {[%clk 0:01:52.8]} 24.
Nf1 {[%clk 0:01:44.1]} 24... Be7 {[%clk 0:01:50.2]} 25. Rg1 {[%clk 0:01:37.9]}
25... Nd6 {[%clk 0:01:39.7]} 26. Nd2 {[%clk 0:01:36.8]} 26... Rf8 {[%clk
0:01:34.4]} 27. Be3 {[%clk 0:01:34.9]} 27... Nb5 {[%clk 0:01:29.7]} 28. Bc4
{[%clk 0:01:30.4]} 28... Nc7 {[%clk 0:01:21.1]} 29. Rh1 {[%clk 0:01:17.8]} 29...
Bd6 {[%clk 0:01:06.7]} 30. Be2 {[%clk 0:01:14.2]} 30... Be7 {[%clk 0:00:57.4]}
31. O-O-O {[%clk 0:01:13.5]} 31... Rfd8 {[%clk 0:00:56.1]} 32. Nc4 {[%clk
0:01:07.3]} 32... Bxc4 {[%clk 0:00:52]} 33. Bxc4+ {[%clk 0:01:05.9]} 33... Kg7
{[%clk 0:00:51.8]} 34. Rxd7 {[%clk 0:01:04.7]} 34... Rxd7 {[%clk 0:00:51.4]} 35.
Kc2 {[%clk 0:01:03.2]} 35... Nb5 {[%clk 0:00:50.4]} 36. Rf1 {[%clk 0:00:53.9]}
36... Bd8 {[%clk 0:00:47.8]} 37. b4 {[%clk 0:00:51.7]} 37... Nd6 {[%clk
0:00:46]} 38. Rd1 {[%clk 0:00:51.2]} 38... Bc7 {[%clk 0:00:44.4]} 39. Bc5 {[%clk
0:00:44.6]} 39... Kf8 {[%clk 0:00:42.5]} 40. Be6 {[%clk 0:00:43]} 40... Rd8
{[%clk 0:00:41.5]} 41. f4 {[%clk 0:00:40.9]} 41... Ke7 {[%clk 0:00:38.5]} 42.
Bb3 {[%clk 0:00:38.7]} 42... Ke8 {[%clk 0:00:26.8]} 43. fxe5 {[%clk 0:00:36.8]}
43... Nf7 {[%clk 0:00:23]} 44. e6 {[%clk 0:00:30.2]} 44... Ne5 {[%clk
0:00:19.4]} 45. Rf1 {[%clk 0:00:30.1]} 45... Bd6 {[%clk 0:00:15.9]} 46. Bb6
{[%clk 0:00:26.7]} 46... Rc8 {[%clk 0:00:15.4]} 47. Bd4 {[%clk 0:00:23.9]} 47...
Ke7 {[%clk 0:00:13.9]} 48. Bxe5 {[%clk 0:00:24.1]} 48... Bxe5 {[%clk 0:00:13.1]}
49. Rf7+ {[%clk 0:00:24.6]} 49... Kd6 {[%clk 0:00:12.4]} 50. Rd7# {[%clk
0:00:23.9]} 1-0